bitfinex-derivatives/quotes_BTCF0:USTF0_20210109
["timestamp","ask_amount","ask_price","bid_price","bid_amount"]
[1610153598520,0.13632608,40015.0,40008.0,0.13632608]
[1610153598920,0.12487,40022.0,40008.0,0.13632608]
[1610153600319,0.12487,40022.0,40000.0,0.33201]
[1610153600521,0.13632608,40001.0,40000.0,0.33201]
[1610153601122,0.13632608,40001.0,40000.0,0.25]
[1610153601922,0.08308,40009.0,40000.0,0.25]
[1610153602625,0.08308,40009.0,40005.0,0.13632608]
[1610153603325,0.13632608,40017.0,40005.0,0.22612608]
[1610153603927,3.3536,40009.0,40005.0,0.22612608]
[1610153604130,0.13632608,40017.0,40005.0,0.0898]
[1610153604327,3.4117,40006.0,40000.0,0.25]
[1610153605129,0.13632608,40001.0,40000.0,0.25]
[1610153608332,0.22969608,40001.0,40000.0,0.25]
[1610153610634,0.22969608,40001.0,40000.0,0.232]
[1610153611035,1.72969608,40001.0,40000.0,0.232]
[1610153611640,8.45479608,40001.0,40000.0,0.232]
[1610153611934,1.72969608,40001.0,40000.0,0.171]
[1610153612137,3.3212,39962.0,39951.0,1.0]
[1610153612336,3.43705,39962.0,39951.0,1.0]
[1610153613236,0.13632608,39952.0,39951.0,1.0]
[1610153613436,0.24299608,39952.0,39951.0,1.0]
[1610153613838,0.10667,39952.0,39951.0,1.0]
[1610153614739,0.11192,39971.0,39951.0,1.0]
[1610153615141,0.11192,39971.0,39970.0,0.13632608]
[1610153615342,0.11192,39971.0,39970.0,4.06982608]
[1610153615944,0.09337,40001.0,39970.0,4.06982608]
[1610153615945,0.0745,39983.0,39970.0,4.15416608]
[1610153616441,0.09337,40001.0,39970.0,4.15416608]
[1610153616841,0.11909,40011.0,39970.0,4.15416608]
[1610153617342,0.11909,40011.0,39970.0,4.01784]
[1610153617642,0.11909,40011.0,40009.0,0.13632608]
[1610153618046,0.11909,40011.0,39970.0,4.01784]
[1610153619245,0.11909,40011.0,39970.0,0.08434]
[1610153619749,0.13632608,39980.0,39979.0,0.13632608]
[1610153621247,0.13632608,39980.0,39958.0,0.07704]
[1610153621549,0.13632608,39980.0,39942.0,3.6359]
[1610153621845,0.0961,39980.0,39962.0,0.13632608]
[1610153623646,0.13632608,39967.0,39966.0,0.13632608]
[1610153623846,0.0961,39980.0,39966.0,0.13632608]
[1610153625449,0.12671,39988.0,39966.0,0.13632608]
[1610153625650,0.13632608,40017.0,39987.0,0.13632608]
[1610153627754,0.13632608,39988.0,39970.0,0.08662]
[1610153628057,0.23672608,39988.0,39970.0,0.08662]
[1610153628453,0.23672608,39988.0,39963.0,3.9358]
[1610153629654,0.13632608,39979.0,39978.0,0.13632608]
[1610153631556,0.13632608,39979.0,39959.0,0.09192]
[1610153631756,0.12426,39980.0,39970.0,0.13632608]
[1610153631958,0.12426,39980.0,39955.0,3.4132]
[1610153633757,0.12426,39980.0,39972.0,0.13632608]
[1610153635059,0.1004,39988.0,39972.0,0.13632608]
[1610153635260,4.0497,40007.0,39972.0,0.13632608]
[1610153635860,4.0497,40007.0,39986.0,0.13632608]
[1610153636561,4.0497,40007.0,39956.0,0.12287]
[1610153637461,4.0497,40007.0,39955.0,3.4132]
[1610153637762,4.0497,40007.0,39971.0,0.13632608]
[1610153638460,0.1569,40030.0,39971.0,0.13632608]
[1610153639763,0.1569,40030.0,40007.0,0.13632608]
[1610153640567,0.1569,40030.0,39968.0,3.6605]
[1610153641966,0.1569,40030.0,40009.0,0.13632608]
[1610153643869,0.13632608,40017.0,40009.0,0.13632608]
[1610153644671,0.2855,40037.0,40009.0,0.13632608]
[1610153644869,2.8896,40051.0,40009.0,0.13632608]
[1610153645270,0.2988,40050.0,40009.0,0.13632608]
[1610153645771,0.13632608,40038.0,40009.0,0.13632608]
[1610153645969,0.2988,40050.0,40009.0,0.13632608]
[1610153645970,0.2988,40050.0,40009.0,0.55742608]
[1610153646470,0.2988,40050.0,40009.0,0.66940608]
[1610153647179,0.2988,40050.0,40009.0,0.65940608]
[1610153647472,2.9006,40072.0,40009.0,2.15940608]
[1610153647874,0.13632608,40054.0,40009.0,2.15940608]
[1610153648074,0.16044897,40010.0,40009.0,2.15940608]
[1610153648376,0.02944897,40010.0,40009.0,2.15940608]
[1610153649075,0.2865,40071.0,40009.0,2.15940608]
[1610153649476,0.2865,40071.0,40009.0,1.73830608]
[1610153649680,0.2865,40071.0,40026.0,4.1204]
[1610153649881,0.13632608,40069.0,40068.0,0.13632608]
[1610153650077,0.21457608,40069.0,40068.0,0.13632608]
[1610153651278,0.21457608,40069.0,40026.0,4.20893]
[1610153651483,0.21457608,40069.0,40026.0,0.08853]
[1610153651880,0.07825,40069.0,40038.0,0.13632608]
[1610153652283,0.07825,40069.0,40015.0,3.242]
[1610153653884,0.07825,40069.0,40037.0,0.13632608]
[1610153655287,0.2865,40071.0,40037.0,0.13632608]
[1610153655785,0.2865,40071.0,40047.0,0.13632608]
[1610153655986,0.2865,40071.0,40015.0,3.242]
[1610153656387,0.37841,40071.0,40015.0,3.242]
[1610153657790,0.37841,40071.0,40043.0,0.13632608]
[1610153658191,0.37841,40071.0,40019.0,0.09253]
[1610153658593,1.5,40070.0,40019.0,0.09253]
[1610153658993,3.5483,40053.0,40019.0,0.09253]
[1610153659195,1.6569,40052.0,40009.0,0.11198]
[1610153659394,1.6569,40052.0,39994.0,3.3647]
[1610153660096,1.6569,40052.0,39977.0,0.2892]
[1610153660298,3.4678,40035.0,39977.0,0.2892]
[1610153660498,5.05855,40035.0,39977.0,0.2892]
[1610153661801,5.05855,40035.0,39989.0,0.13632608]
[1610153662099,5.05855,40035.0,39977.0,0.2892]
[1610153662303,5.05855,40035.0,39978.0,0.10835]
[1610153662503,3.55855,40035.0,39978.0,0.10835]
[1610153663903,3.55855,40035.0,40016.0,0.13632608]
[1610153664103,0.09075,40035.0,40016.0,0.13632608]
[1610153665111,0.09075,40035.0,40004.0,3.1771]
[1610153665308,0.09075,40035.0,39993.0,0.11998]
[1610153665608,0.12496,40035.0,39993.0,0.11998]
[1610153665808,0.12496,40035.0,40006.0,0.13632608]
[1610153666010,0.12496,40035.0,39993.0,0.11998]
[1610153667210,0.12496,40035.0,39998.0,2.9899]
[1610153667814,0.12496,40035.0,40031.0,0.13632608]
[1610153670711,0.13632608,40040.0,40031.0,0.13632608]
[1610153671212,0.13632608,40040.0,40005.0,0.10858]
[1610153671614,0.23080608,40040.0,40005.0,0.10858]
[1610153671815,0.09448,40040.0,40021.0,0.13632608]
[1610153673113,0.09448,40040.0,40005.0,0.10858]
[1610153673312,0.09448,40040.0,39998.0,2.9899]
[1610153673913,0.09448,40040.0,40032.0,0.13632608]
[1610153674213,0.09448,40040.0,40003.0,0.08394]
[1610153675914,0.13632608,40019.0,40018.0,0.13632608]
[1610153679618,0.13632608,40019.0,40018.0,0.62612608]
[1610153679818,0.10254,40022.0,40018.0,0.62612608]
[1610153680618,0.13632608,40025.0,40018.0,0.62612608]
[1610153680819,0.09448,40040.0,40018.0,0.62612608]
[1610153681019,0.09028,40053.0,40018.0,0.13632608]
[1610153681618,0.09028,40053.0,40018.0,3.89262608]
[1610153681918,0.09028,40053.0,40033.0,0.13632608]
[1610153682218,0.09028,40053.0,40034.0,3.1658]
[1610153683121,0.2895,40070.0,40034.0,3.1658]
[1610153684123,0.2895,40070.0,40062.0,0.13632608]
[1610153684621,0.2895,40070.0,40052.0,2.9413]
[1610153686027,0.13632608,40053.0,40052.0,2.9413]
[1610153686227,0.24701608,40053.0,40052.0,2.9413]
[1610153686726,0.11069,40053.0,40052.0,2.9413]
[1610153688227,0.11069,40053.0,40052.0,3.07762608]
[1610153688728,0.12544,40062.0,40052.0,3.07762608]
[1610153688931,0.12544,40062.0,40052.0,2.9413]
[1610153689130,0.12544,40062.0,40039.0,0.11075]
[1610153689430,0.12544,40062.0,40038.0,4.0687]
[1610153689729,0.12544,40062.0,40022.0,0.08738]
[1610153689930,0.12544,40062.0,40021.0,2.8363]
[1610153690130,0.13632608,40045.0,40044.0,0.13632608]
[1610153690331,0.13632608,40045.0,40021.0,2.8363]
[1610153692033,0.13632608,40031.0,40030.0,0.13632608]
[1610153692233,0.10652,40046.0,40030.0,0.13632608]
[1610153694035,0.10652,40046.0,40039.0,0.13632608]
[1610153695535,0.12544,40062.0,40039.0,0.13632608]
[1610153695737,0.2747,40068.0,40039.0,0.13632608]
[1610153696136,0.2747,40068.0,40044.0,0.13632608]
[1610153698039,0.2747,40068.0,40059.0,0.13632608]
[1610153699440,0.09191,40071.0,40059.0,0.13632608]
[1610153699640,0.01978172,40096.0,40059.0,0.13632608]
[1610153699841,0.29964028,40095.0,40061.0,3.0482]
[1610153700041,0.13632608,40069.0,40067.0,0.13632608]
[1610153700242,0.22722608,40069.0,40067.0,0.13632608]
[1610153702744,0.0909,40069.0,40067.0,0.13632608]
[1610153703344,0.12771,40078.0,40067.0,0.13632608]
[1610153704148,0.12771,40078.0,40077.0,0.13632608]
[1610153704550,0.12771,40078.0,40077.0,0.58442608]
[1610153705152,0.2928,40104.0,40077.0,0.58442608]
[1610153705550,0.2928,40104.0,40077.0,0.4481]
[1610153706250,0.13632608,40079.0,40077.0,0.4481]
[1610153706551,0.25130608,40079.0,40077.0,0.4481]
[1610153708153,0.25130608,40079.0,40078.0,0.13632608]
[1610153708453,0.11498,40079.0,40078.0,0.13632608]
[1610153709152,0.2928,40104.0,40078.0,0.13632608]
[1610153710156,0.2928,40104.0,40087.0,0.13632608]
[1610153712156,0.2928,40104.0,40096.0,0.13632608]
[1610153713866,0.00668437,40130.0,40096.0,0.13632608]
[1610153714058,0.2815,40129.0,40096.0,0.13632608]
[1610153714359,0.40146,40129.0,40105.0,0.13632608]
[1610153716162,0.13632608,40106.0,40083.0,0.10784]
[1610153716362,0.25529608,40106.0,40083.0,3.96804]
[1610153718161,0.11897,40106.0,40083.0,3.96804]
[1610153719668,0.11897,40106.0,40083.0,0.10784]
[1610153719870,0.11897,40106.0,40093.0,4.1159]
[1610153720266,0.11897,40106.0,40105.0,0.13632608]
[1610153721168,0.11897,40106.0,40105.0,0.60192608]
[1610153721368,0.11996,40129.0,40105.0,0.60192608]
[1610153721668,0.294,40144.0,40105.0,0.13632608]
[1610153722167,0.294,40144.0,40130.0,0.13632608]
[1610153724168,0.13632608,40131.0,40130.0,0.13632608]
[1610153724372,0.11503,40131.0,40130.0,0.13632608]
[1610153724870,0.11503,40131.0,40130.0,3.68392608]
[1610153725570,0.09484,40140.0,40130.0,3.68392608]
[1610153726173,0.09484,40140.0,40139.0,0.13632608]
[1610153726375,0.09484,40140.0,40139.0,0.61022608]
[1610153726776,0.09484,40140.0,40139.0,0.13632608]
[1610153726974,0.09484,40140.0,40120.0,0.08251]
[1610153727376,0.09484,40140.0,40115.0,3.6725]
[1610153728174,0.13632608,40139.0,40138.0,0.13632608]
[1610153728376,0.09484,40140.0,40138.0,0.13632608]
[1610153728777,0.09484,40140.0,40125.0,2.9624]
[1610153730179,0.13632608,40139.0,40138.0,0.13632608]
[1610153730578,0.13632608,40139.0,40126.0,4.168]
[1610153731379,0.13632608,40139.0,40104.0,0.276]
[1610153732181,0.2920065,40140.0,40132.0,0.13632608]
[1610153732480,0.2920065,40140.0,40104.0,0.276]
[1610153732880,0.2920065,40140.0,40099.0,2.9449]
[1610153734380,0.13632608,40126.0,40117.0,0.13632608]
[1610153734581,0.23476608,40126.0,40117.0,0.13632608]
[1610153735383,0.23476608,40126.0,40067.0,0.2984]
[1610153735582,0.23476608,40126.0,40084.0,3.4064]
[1610153736183,0.23476608,40126.0,40107.0,0.13632608]
[1610153736381,0.13632608,40110.0,40107.0,0.13632608]
[1610153736583,0.21446608,40110.0,40107.0,0.13632608]
[1610153737881,0.07814,40110.0,40107.0,0.13632608]
[1610153740287,0.13632608,40108.0,40084.0,3.4064]
[1610153741795,0.13632608,40108.0,40079.0,0.0839]
[1610153741991,0.13632608,40108.0,40067.0,0.2984]
[1610153742393,0.07814,40110.0,40089.0,0.13632608]
[1610153742692,0.2987,40109.0,40089.0,0.13632608]
[1610153742891,0.37768,40109.0,40089.0,0.13632608]
[1610153743392,0.37768,40109.0,40067.0,0.2984]
[1610153743592,0.37768,40109.0,40065.0,3.2394]
[1610153743791,0.37768,40109.0,40057.0,0.10266]
[1610153743992,3.4796,40098.0,40049.0,3.2252]
[1610153744191,3.59698,40098.0,40049.0,3.2252]
[1610153744401,3.59698,40098.0,40058.0,0.13632608]
[1610153746394,0.13632608,40080.0,40065.0,0.13632608]
[1610153746694,0.25820608,40080.0,40065.0,0.13632608]
[1610153748296,0.13632608,40066.0,40042.0,0.09844]
[1610153748596,0.25715608,40066.0,40042.0,0.09844]
[1610153750001,0.25715608,40066.0,40028.0,3.5279]
[1610153750400,0.12083,40066.0,40046.0,0.13632608]
[1610153752401,0.12083,40066.0,40063.0,0.13632608]
[1610153753504,0.2751,40079.0,40063.0,0.13632608]
[1610153754305,0.13632608,40064.0,40063.0,0.13632608]
[1610153755905,0.12116,40067.0,40063.0,0.13632608]
[1610153758307,0.13632608,40065.0,40063.0,0.13632608]
[1610153758711,0.13632608,40065.0,40034.0,0.10352]
[1610153758918,0.13632608,40065.0,40027.0,4.3022]
[1610153760412,0.12116,40067.0,40043.0,0.13632608]
[1610153760610,3.426,40070.0,40043.0,0.13632608]
[1610153761012,0.2729,40094.0,40043.0,0.13632608]
[1610153761212,2.934,40092.0,40043.0,0.13632608]
[1610153761718,2.934,40092.0,40039.0,2.998]
[1610153762312,2.934,40092.0,40057.0,0.13632608]
[1610153763011,2.934,40092.0,40039.0,2.998]
[1610153763812,0.2729,40094.0,40034.0,0.10921]
[1610153764012,3.7173,40066.0,40034.0,0.10921]
[1610153764215,3.7173,40066.0,40027.0,0.2905]
[1610153764216,3.79841,40066.0,40027.0,0.2905]
[1610153764514,3.79841,40066.0,40038.0,0.13632608]
[1610153765116,3.79841,40066.0,40027.0,0.2905]
[1610153766418,3.79841,40066.0,40033.0,0.13632608]
[1610153768417,0.13632608,40034.0,40033.0,0.13632608]
[1610153772124,0.09574,40038.0,40033.0,0.13632608]
[1610153773625,0.13632608,40043.0,40033.0,0.13632608]
[1610153774426,0.13632608,40043.0,40042.0,0.13632608]
[1610153774627,4.058,40064.0,40042.0,0.13632608]
[1610153775327,0.08111,40066.0,40042.0,0.13632608]
[1610153775528,0.2729,40094.0,40042.0,0.13632608]
[1610153775731,3.1844,40091.0,40042.0,0.13632608]
[1610153776329,0.13632608,40065.0,40060.0,0.13632608]
[1610153776533,0.23004608,40065.0,40060.0,0.13632608]
[1610153777231,0.09372,40065.0,40060.0,0.13632608]
[1610153778835,0.13632608,40078.0,40060.0,0.13632608]
[1610153779635,0.13632608,40078.0,40054.0,0.0845]
[1610153780239,0.13632608,40078.0,40041.0,3.3535]
[1610153780439,0.0747,40086.0,40065.0,0.13632608]
[1610153780638,3.1854,40088.0,40041.0,3.3535]
[1610153782339,3.1854,40088.0,40059.0,0.13632608]
[1610153783440,3.1854,40088.0,40041.0,3.3535]
[1610153783843,3.30225,40088.0,40041.0,3.3535]
[1610153784343,0.13632608,40050.0,40041.0,3.3535]
[1610153784745,0.13632608,40050.0,40040.0,0.13632608]
[1610153786349,0.10887,40051.0,40050.0,0.13632608]
[1610153786547,0.13632608,40055.0,40050.0,0.13632608]
[1610153786948,0.2912,40087.0,40050.0,0.13632608]
[1610153788150,0.2912,40087.0,40063.0,2.8041]
[1610153788351,0.11685,40088.0,40063.0,2.8041]
[1610153788551,0.11685,40088.0,40080.0,0.13632608]
[1610153788753,0.11685,40088.0,40087.0,3.1133]
[1610153789054,0.11738,40098.0,40087.0,3.1133]
[1610153789352,0.0069465,40124.0,40087.0,3.1133]
[1610153789554,0.75634182,40131.0,40080.0,0.24657608]
[1610153789555,0.00696353,40130.0,40088.0,1.5]
[1610153789756,0.00696353,40130.0,40103.0,3.2896]
[1610153789954,0.00699167,40142.0,40103.0,3.2896]
[1610153790357,0.298,40146.0,40103.0,3.2896]
[1610153790555,0.298,40146.0,40132.0,0.13632608]
[1610153791257,0.298,40146.0,40127.0,3.9747]
[1610153791458,0.37636,40146.0,40127.0,3.9747]
[1610153793262,0.13632608,40128.0,40127.0,3.9747]
[1610153793460,0.23013608,40128.0,40127.0,3.9747]
[1610153794961,0.09381,40128.0,40127.0,3.9747]
[1610153795165,0.09381,40128.0,40127.0,4.11102608]
[1610153796762,0.09381,40128.0,40127.0,3.9747]
[1610153798564,0.13632608,40132.0,40127.0,3.9747]
[1610153801269,0.13632608,40132.0,40129.0,0.13632608]
[1610153805771,0.13632608,40132.0,40127.0,3.9747]
[1610153806271,0.23521608,40132.0,40127.0,3.9747]
[1610153807070,0.23521608,40132.0,40127.0,4.11102608]
[1610153808676,0.09889,40132.0,40127.0,3.9747]
[1610153809072,0.13632608,40128.0,40127.0,3.9747]
[1610153812876,0.09889,40132.0,40127.0,3.9747]
[1610153813076,0.37636,40146.0,40130.0,0.13632608]
[1610153813476,0.37636,40146.0,40130.0,3.56792608]
[1610153815077,0.13632608,40131.0,40130.0,3.56792608]
[1610153815980,0.13632608,40131.0,40130.0,0.13632608]
[1610153816281,0.13632608,40131.0,40110.0,0.09387]
[1610153816686,2.8014,40125.0,40101.0,0.10613]
[1610153816885,2.8014,40125.0,40087.0,3.5992]
[1610153816886,2.89339,40125.0,40087.0,3.5992]
[1610153817082,2.89339,40125.0,40103.0,0.13632608]
[1610153819184,2.89339,40125.0,40111.0,0.13632608]
[1610153820987,0.09199,40125.0,40111.0,0.13632608]
[1610153821189,0.13632608,40114.0,40111.0,0.13632608]
[1610153821387,0.21395608,40114.0,40111.0,0.13632608]
[1610153821587,0.21395608,40114.0,40100.0,3.0761]
[1610153821787,0.21395608,40114.0,40073.0,0.2819]
[1610153823089,0.07763,40114.0,40096.0,0.13632608]
[1610153825091,0.07763,40114.0,40104.0,0.13632608]
[1610153826591,0.09199,40125.0,40104.0,0.13632608]
[1610153826791,0.20203528,40131.0,40104.0,0.13632608]
[1610153827191,0.20203528,40131.0,40112.0,0.13632608]
[1610153829293,0.13632608,40113.0,40112.0,0.13632608]
[1610153829594,0.25380608,40113.0,40112.0,0.13632608]
[1610153829793,0.11748,40113.0,40112.0,0.13632608]
[1610153830595,0.11125,40124.0,40112.0,0.13632608]
[1610153830995,0.11125,40124.0,40103.0,3.446]
[1610153831396,0.11125,40124.0,40123.0,0.13632608]
[1610153832898,0.11125,40124.0,40115.0,3.0299]
[1610153833500,0.11125,40124.0,40116.0,0.13632608]
[1610153835401,0.24757608,40124.0,40123.0,0.13632608]
[1610153835702,0.11125,40124.0,40123.0,0.13632608]
[1610153836000,0.20203528,40131.0,40123.0,0.13632608]
[1610153837401,0.13632608,40124.0,40123.0,0.13632608]
[1610153837901,0.09255,40126.0,40123.0,0.13632608]
[1610153842908,0.20203528,40131.0,40123.0,0.13632608]
[1610153843408,0.20203528,40131.0,40130.0,0.13632608]
[1610153844109,0.20203528,40131.0,40130.0,3.94802608]
[1610153847513,0.20203528,40131.0,40130.0,5.44802608]
[1610153848412,0.2,40164.0,40130.0,3.94802608]
[1610153848712,0.2,40164.0,40130.0,0.13632608]
[1610153849011,0.2,40164.0,40134.0,3.2148]
[1610153849611,0.2,40164.0,40159.0,0.13632608]
[1610153851116,0.2,40164.0,40159.0,0.61392608]
[1610153851317,0.2,40164.0,40159.0,0.13632608]
[1610153851517,0.2,40164.0,40162.0,3.9131]
[1610153855624,0.075,40163.0,40162.0,3.9131]
[1610153856026,0.075,40163.0,40159.0,0.13632608]
[1610153856326,0.2,40164.0,40159.0,0.13632608]
[1610153856926,0.2,40164.0,40151.0,3.2013]
[1610153857428,0.0755,40163.0,40151.0,3.2013]
[1610153857629,0.16396,40163.0,40160.0,0.13632608]
[1610153857930,0.08846,40163.0,40160.0,0.13632608]
[1610153859028,0.2,40164.0,40160.0,0.13632608]
[1610153859928,0.0739,40163.0,40160.0,0.13632608]
[1610153860332,0.2,40164.0,40160.0,0.13632608]
[1610153861232,0.0735,40163.0,40160.0,0.13632608]
[1610153861435,0.0735,40163.0,40149.0,0.08545]
[1610153861634,0.13632608,40150.0,40148.0,0.13632608]
[1610153862234,0.23463608,40150.0,40148.0,0.13632608]
[1610153863033,0.09831,40150.0,40148.0,0.13632608]
[1610153864635,0.11209,40163.0,40148.0,0.13632608]
[1610153865036,0.11209,40163.0,40148.0,3.14152608]
[1610153865537,0.0749,40162.0,40161.0,0.13632608]
[1610153865940,0.0749,40162.0,40161.0,0.68882608]
[1610153866440,0.2,40164.0,40161.0,0.68882608]
[1610153866637,0.2,40164.0,40161.0,0.13632608]
[1610153867038,0.2,40164.0,40161.0,3.88632608]
[1610153867339,0.0747,40163.0,40161.0,3.88632608]
[1610153868442,0.2,40164.0,40161.0,3.88632608]
[1610153868941,0.03,40167.0,40161.0,3.88632608]
[1610153869645,0.03,40167.0,40166.0,0.13632608]
[1610153873345,0.03,40167.0,40166.0,1.63632608]
[1610153873554,0.14367584,40212.0,40166.0,1.63632608]
[1610153873749,0.00734976,40212.0,40192.0,4.0401]
[1610153873950,0.02199321,40227.0,40192.0,4.0401]
[1610153874350,0.2712,40228.0,40192.0,4.0401]
[1610153875047,0.2712,40228.0,40181.0,3.7357]
[1610153875251,0.2712,40228.0,40179.0,0.09851]
[1610153875252,0.09002,40228.0,40182.0,1.5]
[1610153875452,0.09002,40228.0,40217.0,3.49]
[1610153875750,0.09002,40228.0,40182.0,1.5]
[1610153875751,0.09002,40228.0,40227.0,4.00352608]
[1610153876350,0.00740649,40255.0,40227.0,4.00352608]
[1610153876553,0.2812,40258.0,40227.0,4.00352608]
[1610153876749,0.2812,40258.0,40227.0,4.12014608]
[1610153877552,0.2812,40258.0,40257.0,0.13632608]
[1610153897773,0.90736619,40258.0,40250.0,0.08298]
[1610153897973,0.90736619,40258.0,40231.0,3.5133]
[1610153898174,0.90736619,40258.0,40227.0,0.11662]
[1610153898377,1.00988619,40258.0,40204.0,0.10355]
[1610153898772,1.00988619,40258.0,40202.0,3.1919]
[1610153899775,0.87356011,40258.0,40204.0,0.13632608]
[1610153901076,0.87356011,40258.0,40204.0,0.24214608]
[1610153901675,0.87356011,40258.0,40252.0,0.13632608]
[1610153902878,0.87356011,40258.0,40248.0,3.0163]
[1610153903778,0.13632608,40249.0,40248.0,3.0163]
[1610153903978,0.23088608,40249.0,40217.0,0.08624]
[1610153904181,0.23088608,40249.0,40228.0,3.9398]
[1610153905684,0.09456,40249.0,40239.0,0.13632608]
[1610153905883,0.0755,40248.0,40239.0,0.13632608]
[1610153906084,0.09456,40249.0,40239.0,0.13632608]
[1610153906985,0.0755,40248.0,40239.0,0.13632608]
[1610153907187,0.09456,40249.0,40228.0,3.9398]
[1610153907584,0.09456,40249.0,40217.0,0.08624]
[1610153907784,0.13632608,40229.0,40226.0,0.13632608]
[1610153908386,0.13632608,40229.0,40216.0,3.3179]
[1610153909387,0.13632608,40229.0,40164.0,0.2867]
[1610153909586,0.13632608,40229.0,40191.0,3.1706]
[1610153909788,0.0736,40234.0,40209.0,0.13632608]
[1610153911297,0.499,40233.0,40194.0,0.10279]
[1610153911494,0.12541,40237.0,40194.0,0.10279]
[1610153911693,0.13632608,40195.0,40190.0,0.13632608]
[1610153912095,0.13632608,40195.0,40174.0,3.2752]
[1610153912596,0.13632608,40195.0,40124.0,2.3525765]
[1610153912795,0.13632608,40195.0,40154.0,3.258]
[1610153912994,0.13632608,40195.0,40154.0,3.37591]
[1610153913795,0.1042,40198.0,40177.0,0.13632608]
[1610153913998,0.1042,40198.0,40165.0,0.07845]
[1610153914998,0.1042,40198.0,40154.0,3.37591]
[1610153915899,0.1042,40198.0,40166.0,0.13632608]
[1610153915900,0.13632608,40168.0,40166.0,0.13632608]
[1610153917000,0.0756,40167.0,40166.0,0.13632608]
[1610153917300,0.13632608,40168.0,40166.0,0.13632608]
[1610153917500,0.0928,40177.0,40166.0,3.40052608]
[1610153917701,0.13632608,40191.0,40176.0,0.13632608]
[1610153918404,0.0735,40190.0,40176.0,0.13632608]
[1610153918604,0.2782,40197.0,40176.0,0.13632608]
[1610153919201,0.10178237,40249.0,40176.0,0.13632608]
[1610153919202,0.09456,40249.0,40176.0,0.13632608]
[1610153919503,0.2951,40218.0,40176.0,0.13632608]
[1610153919700,0.2951,40218.0,40175.0,0.11396]
[1610153919701,0.2951,40218.0,40197.0,0.13632608]
[1610153920304,0.2951,40218.0,40175.0,0.11396]
[1610153920502,0.0743,40217.0,40175.0,0.11396]
[1610153920904,0.3954,40218.0,40175.0,0.11396]
[1610153921705,0.3954,40218.0,40184.0,0.13632608]
[1610153922805,0.0749,40217.0,40184.0,0.13632608]
[1610153923509,0.3954,40218.0,40184.0,0.13632608]
[1610153923811,0.13632608,40185.0,40184.0,0.13632608]
[1610153924210,0.13632608,40185.0,40166.0,3.34827]
[1610153924808,0.13632608,40185.0,40166.0,0.08407]
[1610153925008,0.13632608,40185.0,40157.0,0.0275]
[1610153925809,0.13632608,40168.0,40164.0,0.13632608]
[1610153926008,0.12567,40190.0,40164.0,0.13632608]
[1610153926720,0.12567,40190.0,40164.0,0.69552608]
[1610153926922,0.12567,40190.0,40164.0,0.13632608]
[1610153927313,0.12567,40190.0,40167.0,3.7273]
[1610153927812,0.12567,40190.0,40189.0,0.13632608]
[1610153928414,0.13632608,40195.0,40189.0,0.13632608]
[1610153929916,0.13632608,40195.0,40194.0,0.13632608]
[1610153930216,0.3954,40218.0,40194.0,0.13632608]
[1610153931818,0.3954,40218.0,40212.0,0.13632608]
[1610153932220,0.1003,40218.0,40212.0,0.13632608]
[1610153932418,0.12541,40237.0,40212.0,0.13632608]
[1610153932620,2.8864,40242.0,40212.0,0.13632608]
[1610153932820,0.2833,40248.0,40212.0,0.13632608]
[1610153933922,0.2833,40248.0,40227.0,0.13632608]
[1610153935821,0.2833,40248.0,40242.0,0.13632608]
[1610153936224,0.2833,40248.0,40225.0,3.2297]
[1610153936421,0.2833,40248.0,40222.0,0.09528]
[1610153937524,0.2833,40248.0,40206.0,3.8645]
[1610153937921,0.2833,40248.0,40218.0,0.13632608]
[1610153938124,0.2833,40248.0,40206.0,3.8645]
[1610153938321,0.4402,40248.0,40206.0,3.8645]
[1610153938621,0.4402,40248.0,40161.0,2.37840589]
[1610153938822,3.5666,40244.0,40185.0,3.9414]
[1610153939922,3.5666,40244.0,40216.0,0.13632608]
[1610153941321,0.2833,40248.0,40216.0,0.13632608]
[1610153941623,0.09456,40249.0,40219.0,3.0508]
[1610153941822,0.48984011,40258.0,40248.0,0.13632608]
[1610153942422,0.48984011,40258.0,40249.0,3.2491]
[1610153943726,0.48984011,40258.0,40248.0,0.13632608]
[1610153943926,0.13632608,40255.0,40248.0,0.13632608]
[1610153944727,0.09226,40257.0,40236.0,0.1078]
[1610153945927,0.09226,40257.0,40256.0,0.13632608]
[1610153946528,0.48984011,40258.0,40256.0,0.13632608]
[1610153948532,0.48984011,40258.0,40236.0,0.1078]
[1610153948733,0.61396011,40258.0,40223.0,3.6678]
[1610153949134,0.61396011,40258.0,40214.0,1.5]
[1610153949337,0.61396011,40258.0,40232.0,3.376]
[1610153949534,0.61396011,40258.0,40232.0,3.46173]
[1610153949936,0.61396011,40258.0,40257.0,0.13632608]
[1610153950938,0.61396011,40258.0,40246.0,0.09943]
[1610153951942,0.13632608,40247.0,40238.0,0.13632608]
[1610153952139,0.13632608,40247.0,40232.0,0.08573]
[1610153953340,0.1022,40248.0,40228.0,3.5185]
[1610153953940,0.13632608,40229.0,40228.0,3.5185]
[1610153954640,0.13632608,40229.0,40226.0,0.13632608]
[1610153954839,0.13632608,40229.0,40222.0,0.0796]
[1610153955041,0.13632608,40229.0,40202.0,0.07816]
[1610153955639,0.13632608,40229.0,40201.0,3.9413]
[1610153955940,3.6114,40236.0,40207.0,0.13632608]
[1610153956142,3.6114,40236.0,40207.0,0.21931608]
[1610153957341,3.6114,40236.0,40207.0,0.13632608]
[1610153958040,3.6114,40236.0,40201.0,4.0214]
[1610153958041,0.13632608,40224.0,40223.0,0.13632608]
[1610153958240,0.11211,40238.0,40223.0,0.13632608]
[1610153958441,0.12218,40226.0,40223.0,0.13632608]
[1610153959140,0.12218,40226.0,40225.0,0.4839]
[1610153959640,0.11211,40238.0,40225.0,0.4839]
[1610153959941,0.1022,40248.0,40247.0,0.13632608]
[1610153960142,0.13632608,40249.0,40247.0,0.13632608]
[1610153960540,0.13632608,40249.0,40247.0,0.59202608]
[1610153960840,0.28,40257.0,40247.0,0.59202608]
[1610153961040,0.00761567,40284.0,40247.0,0.13632608]
[1610153961242,0.1569,40286.0,40251.0,3.4283]
[1610153961540,0.02269688,40287.0,40247.0,0.13632608]